[Event "5th Baskent University Open 2022"]
[Site "Ankara"]
[Date "2022.07.04"]
[Round "5.14"]
[White "Sevgi, Volkan"]
[Black "Cakiroglu, Metin"]
[Result "1-0"]
[ECO "B23"]
[WhiteElo "2305"]
[BlackElo "2068"]
[Annotator "TA"]
[PlyCount "93"]
[EventDate "2022.07.02"]
[EventType "swiss"]
[EventCountry "TUR"]
[SourceTitle "playchess.com"]
[Source "ChessBase"]
[SourceQuality "1"]
[TimeControl "5400+30"]

{[%evp 9,93,16,14,12,12,8,13,0,4,-9,7,-15,10,-10,39,63,48,40,160,161,141,22,55,28,122,138,356,322,411,402,416,391,432,410,472,419,417,412,407,387,397,391,404,404,592,569,1137,1158,1144,1139,1132,1126,1115,1100,1084,1048,1099,0,273,0,1050,274,273,256,250,0,244,241,244,241,262,292,273,198,196,189,270,226,290,256,655,647,662,628,750,742]} 1. e4 {[%emt 0:03:00]} c5 {[%emt 0:02:00]} 2. Nc3 {[%emt 0:00:30]} d6 {[%emt 0:00:30]} 3. g3 {[%emt 0:00:30]} h5 {[%emt 0:00:30]} 4. h3 {[%emt 0:03:30]} g6 {[%emt 0:00:00]} 5. Bg2 {[%emt 0:00:30]} Bg7 {[%emt 0:00:00]} 6. Nf3 {[%emt 0:00:30] B23: Closed Sicilian: Lines without g3.} Nc6 {[%emt 0:00:30] Prevents d4.} 7. d3 {[%emt 0:00:30]} e6 {[%emt 0:00:30]} 8. O-O {[%emt 0:00:30] The position is equal.} Nge7 {[%emt 0:00:30]} 9. Bg5 {[%emt 0:05:30] [#]} Rb8 $146 {[%emt 0:01:30]} ({Predecessor:} 9... a6 10. Qd2 Nd4 11. Rae1 Qc7 12. Ne2 Nxf3+ 13. Bxf3 Nc6 14. c3 e5 15. Bg2 Be6 {½-½ (43) Rouleau,J (2269)-Pelekhaty,A Philadelphia 2003}) 10. a4 {[%emt 0:05:30]} a6 {[%emt 0:00:00]} 11. Qd2 {[%emt 0:00:30][%cal Oe4e5]} b5 {[%emt 0:00:00]} (11... b6 $11) 12. axb5 $14 {[%emt 0:00:30]} axb5 {[%emt 0:00:30]} 13. e5 {[%emt 0:00:30] Hoping for exd6.} Nxe5 {[%emt 0:05:30]} (13... d5 $14) 14. Nxe5 $16 {[%emt 0:01:30]} Bxe5 {[%emt 0:06:30] [#]} 15. Ne4 {[%emt 0:00:00] Prevents f6.} (15. Rfe1 $1 $16 {[%cal Re1e5]}) 15... Qb6 {[%emt 0:12:30]} 16. Nf6+ {[%emt 0:04:00]} (16. d4 $5 cxd4 17. Nf6+ Kd8 18. Qd3 $16) 16... Kd8 {[%emt 0:01:30]} (16... Bxf6 $11 {keeps the balance.} 17. Bxf6 Rg8) 17. c3 {[%emt 0:02:30][%cal Od3d4] White is much more active. The black rooks are badly placed.} d5 $2 {[%emt 0:04:30] [#]} (17... Bb7 $16 {is a better defense.}) 18. Bxd5 $1 {[%emt 0:03:30][%mdl 512]} exd5 {[%emt 0:07:30]} (18... Rf8 19. Bg2) 19. Nxd5 {[%emt 0:00:30]} Qe6 {[%emt 0:00:30]} 20. Nxe7 {[%emt 0:03:30]} f6 {[%emt 0:02:30]} 21. Nxg6 {[%emt 0:01:30]} fxg5 {[%emt 0:01:30]} 22. Nxh8 {[%emt 0:00:00]} Bxh8 {[%emt 0:01:30]} 23. Qxg5+ {[%emt 0:00:00]} Bf6 {[%emt 0:00:00]} 24. Qxc5 {[%emt 0:00:30]} Be7 {[%emt 0:10:00]} 25. Qxh5 {[%emt 0:00:30]} Bb7 {[%emt 0:00:30]} 26. Rfe1 {[%emt 0:00:30]} Qc6 {[%emt 0:03:30]} (26... Qd7 $142 27. c4 Rc8) 27. Qh8+ {[%emt 0:05:30]} Kd7 {[%emt 0:01:30][%csl Gb7][%cal Rc6h1]} 28. Rxe7+ {[%emt 0:00:30]} Kxe7 {[%emt 0:00:30] [#]} 29. Re1+ $1 {[%emt 0:00:00]} Kd7 {[%emt 0:00:30]} 30. Qg7+ {[%emt 0:00:00]} Kc8 {[%emt 0:01:30]} 31. Qf8+ {[%emt 0:01:30]} Kc7 {[%emt 0:00:30]} 32. Qf7+ {[%emt 0:00:30]} (32. Re7+ Kb6 33. Rxb7+ (33. Qxb8 $2 Qh1#) 33... Kxb7 34. Qg7+ Ka6 $15) 32... Kd8 {[%emt 0:00:30]} 33. Qf8+ $2 {[%emt 0:00:30]} (33. Re4 Ra8 34. Kh2) 33... Kc7 $18 {[%emt 0:00:30][%csl Gb7][%cal Rc6g2]} 34. Qf7+ $2 {[%emt 0:00:30]} ({Stronger than} 34. Re7+ Kb6 35. Rxb7+ (35. Qxb8 $2 Qh1#) 35... Kxb7 36. Qg7+ Ka6 $15) (34. Qf4+ Kb6 35. Qd4+ (35. Qxb8 $2 Qh1#) 35... Qc5 36. Qxc5+ (36. Re6+ Bc6 $18) 36... Kxc5 37. Re5+ Kc6 38. f4) 34... Kd8 $1 {[%emt 0:00:30][%csl Gb7][%cal Rc6g2]} (34... Kb6 $2 35. Re6 $18) 35. Qe7+ $2 {[%emt 0:00:30]} (35. Re4 Ra8 36. Kh2) 35... Kc8 {[%emt 0:00:30][%csl Gb7][%cal Rc6g2]} 36. Qe8+ {[%emt 0:00:00]} Kc7 {[%emt 0:00:30][%csl Gb7][%cal Rc6g2]} 37. Qe7+ {[%emt 0:12:00]} Kc8 $1 {[%emt 0:05:30][%csl Gb7][%cal Rc6g2]} 38. Re4 {[%emt 0:00:30]} Ra8 {[%emt 0:00:30]} 39. Kh2 {[%emt 0:04:30]} Ra1 {[%emt 0:02:30]} 40. g4 {[%emt 0:04:30]} ({Don't do} 40. Qf8+ $6 Kc7 $18) 40... Rf1 {[%emt 0:05:30]} 41. Qe8+ {[%emt 0:05:30]} Qxe8 {[%emt 0:00:30]} 42. Rxe8+ {[%emt 0:00:30] KRB-KR} Kc7 {[%emt 0:02:30]} (42... Kd7 {was worth a try.} 43. Rf8 Ke7) 43. Kg3 {[%emt 0:00:30]} Rd1 {[%emt 0:01:30]} 44. Re3 {[%emt 0:00:30] aiming for f4.} Rd2 $2 {[%emt 0:00:30]} (44... Rg1+ 45. Kh4 Rb1 46. Re7+ Kb6) 45. h4 {[%emt 0:00:30][%cal Bh3h4,Bh4h5][%mdl 32] White is clearly winning.} Rxb2 {[%emt 0:00:30]} 46. h5 {[%emt 0:00:30] Threatens to win with h6.} Rb1 {[%emt 0:02:30]} 47. Kh4 {[%emt 0:00:30] Weighted Error Value: White=0.78/Black=0.44} 1-0

[Event "5th Baskent University Open 2022"]
[Site "Ankara"]
[Date "2022.07.04"]
[Round "5.15"]
[White "Yildirim, Ibrahim Halil"]
[Black "Unver, Cumali"]
[Result "1-0"]
[ECO "D05"]
[WhiteElo "2106"]
[BlackElo "2046"]
[Annotator "NA RC"]
[PlyCount "69"]
[EventDate "2022.07.02"]
[EventType "swiss"]
[EventCountry "TUR"]
[SourceTitle "playchess.com"]
[Source "ChessBase"]
[SourceQuality "1"]
[TimeControl "5400+30"]

1. d4 {[%emt 0:01:00]} Nf6 {[%emt 0:02:00]} 2. Nf3 {[%emt 0:00:30]} e6 {[%emt 0:01:30]} 3. Nbd2 {[%emt 0:02:30]} d5 {[%emt 0:00:30]} 4. e3 {[%emt 0:02:30]} c5 {[%emt 0:00:30]} 5. b3 {[%emt 0:00:30]} Nc6 {[%emt 0:00:30]} 6. Bb2 {[%emt 0:00:30]} cxd4 {[%emt 0:00:30]} 7. exd4 {[%emt 0:04:30]} Bd6 {[%emt 0:04:30]} 8. c4 {[%emt 0:03:30]} O-O {[%emt 0:01:30]} 9. Bd3 {[%emt 0:02:30]} dxc4 {[%emt 0:04:30]} 10. bxc4 {[%emt 0:01:30]} Bc5 {[%emt 0:08:30]} 11. Nb3 {[%emt 0:05:30]} Bb4+ {[%emt 0:01:30]} 12. Kf1 {[%emt 0:00:30]} b6 {[%emt 0:01:30]} 13. Rc1 {[%emt 0:23:30]} Bb7 {[%emt 0:00:30]} 14. Bb1 {[%emt 0:04:30]} Qe7 {[%emt 0:01:30]} 15. Qc2 {[%emt 0:11:30]} g6 {[%emt 0:25:30]} 16. h4 {[%emt 0:05:30]} Ba3 {[%emt 0:03:30]} 17. Bxa3 {[%emt 0:01:30]} Qxa3 {[%emt 0:00:00]} 18. h5 {[%emt 0:02:30]} Rfd8 {[%emt 0:05:00]} 19. hxg6 {[%emt 0:02:30]} hxg6 {[%emt 0:00:30]} 20. c5 {[%emt 0:05:13]} Kg7 {[%emt 0:08:30]} 21. Ng5 {[%emt 0:02:24]} Ne7 {[%emt 0:00:30]} 22. Kg1 {[%emt 0:09:22]} Rh8 {[%emt 0:00:00]} 23. Rxh8 {[%emt 0:01:22]} Rxh8 {[%emt 0:00:00]} 24. Qd3 {[%emt 0:01:30]} Bd5 {[%emt 0:01:30]} 25. cxb6 {[%emt 0:03:58]} axb6 {[%emt 0:00:30]} 26. Re1 {[%emt 0:01:04]} Qd6 {[%emt 0:00:30]} 27. Nh3 {[%emt 0:00:02]} Nf5 {[%emt 0:01:30]} 28. Qe2 {[%emt 0:01:10]} Bxb3 {[%emt 0:06:30]} 29. Bxf5 {[%emt 0:00:41]} gxf5 {[%emt 0:02:18]} 30. Qe3 {[%emt 0:00:53]} Ng4 {[%emt 0:01:16]} 31. Qg5+ {[%emt 0:00:25]} Kf8 {[%emt 0:00:00]} 32. axb3 {[%emt 0:00:49]} Qh2+ {[%emt 0:02:01]} 33. Kf1 {[%emt 0:00:43]} Rxh3 {[%emt 0:00:20]} 34. Rc1 {[%emt 0:00:07]} f6 {[%emt 0:06:55]} 35. Rc8+ {[%emt 0:00:05]} 1-0

[Event "5th Baskent University Open 2022"]
[Site "Ankara"]
[Date "2022.07.04"]
[Round "5.16"]
[White "Bicer, Atakan Mert"]
[Black "Cansu, Batuhan"]
[Result "1-0"]
[ECO "A36"]
[WhiteElo "2368"]
[BlackElo "2083"]
[Annotator "TA"]
[PlyCount "55"]
[EventDate "2022.07.02"]
[EventType "swiss"]
[EventCountry "TUR"]
[SourceTitle "playchess.com"]
[Source "ChessBase"]
[SourceQuality "1"]
[TimeControl "5400+30"]

{[%evp 15,55,-20,-8,-18,0,0,0,0,39,39,54,48,79,84,97,91,112,116,89,97,166,166,164,149,153,151,226,235,229,230,258,256,262,258,283,265,260,252,661,660,641,607]} 1. c4 {[%emt 0:01:00]} g6 {[%emt 0:01:00]} 2. g3 {[%emt 0:00:30]} c5 {[%emt 0:00:00][%cal Bc7c5,Bc5b4][%mdl 32]} 3. Bg2 {[%emt 0:00:00]} Nc6 {[%emt 0:00:00]} 4. Nc3 {[%emt 0:00:00]} Bg7 {[%emt 0:00:30]} 5. a3 {[%emt 0:00:00]} e6 {[%emt 0:00:00]} 6. b4 {[%emt 0:00:00]} Nxb4 {[%emt 0:03:00]} 7. axb4 {[%emt 0:00:30]} cxb4 {[%emt 0:00:30]} 8. d4 {[%emt 0:00:00]} bxc3 {[%emt 0:00:00]} 9. e3 {[%emt 0:00:00] A36: Symmetrical English vs ...g6: 4 Bg2 Bg7.} d5 {[%emt 0:03:00]} 10. cxd5 {[%emt 0:00:30]} exd5 {[%emt 0:00:30]} 11. Ne2 {[%emt 0:03:30] The position is equal.} Ne7 {[%emt 0:02:30]} (11... Nf6 {keeps more tension.} 12. Ba3 Bg4 13. f3 Be6) 12. Nxc3 {[%emt 0:00:30]} O-O {[%emt 0:01:30] [#]} 13. Qb3 $146 {[%emt 0:00:30]} ({Predecessor:} 13. Ba3 Re8 14. O-O Be6 15. Qb3 Qd7 16. Bxe7 Rxe7 17. Bxd5 Bh3 18. Rfb1 h5 19. Qxb7 {1-0 (27) Jain,N (2032)-Einarsson,H (2207) Chess.com INT 2021}) 13... Be6 {[%emt 0:13:30]} 14. Qxb7 {[%emt 0:06:30]} Qc8 {[%emt 0:06:30]} 15. Qxc8 {[%emt 0:00:30] 0x0.00207d5d598ddp-1022s more active pieces. The black rooks are badly placed.} Rfxc8 {[%emt 0:00:30]} 16. Kd2 {[%emt 0:11:30]} Rc4 {[%emt 0:18:30]} 17. Ba3 {[%emt 0:00:30]} Rac8 {[%emt 0:00:30]} 18. Rhc1 $18 {[%emt 0:03:30]} ({Don't do} 18. Bxe7 $6 Rxc3 19. Ra2 (19. Rxa7 $2 Rc2+ 20. Ke1 Rc1+ 21. Ke2 Bg4+ 22. f3 R8c2+ 23. Kd3 Bf5+ 24. e4 Rc3+ 25. Ke2 R1c2+ 26. Kd1 Bh6 $19) 19... a5 $16) 18... Bf6 {[%emt 0:10:30]} 19. Rab1 {[%emt 0:11:30]} Kg7 {[%emt 0:09:30]} 20. Bc5 {[%emt 0:08:30]} R8xc5 {[%emt 0:00:30]} (20... a6 $16 21. Bxe7 Bxe7) 21. dxc5 {[%emt 0:00:30]} Rxc5 {[%emt 0:00:30]} 22. Nb5 {[%emt 0:00:30]} Rxc1 {[%emt 0:05:30]} 23. Rxc1 {[%emt 0:00:00]} a5 {[%emt 0:01:30]} 24. Rc7 {[%emt 0:01:00]} Nf5 {[%emt 0:02:30]} 25. Ra7 {[%emt 0:00:30]} Bd8 {[%emt 0:00:41]} 26. Nc7 {[%emt 0:04:30]} Ne7 $2 {[%emt 0:02:15] [#]} (26... Bxc7 27. Rxc7 d4 28. exd4 Nxd4) 27. Nxe6+ {[%emt 0:01:30]} fxe6 {[%emt 0:00:30]} 28. Rd7 {[%emt 0:00:00] White took control after the opening.  Weighted Error Value: White=0.02 (flawless) /Black=0.40} 1-0

[Event "5th Baskent University Open 2022"]
[Site "Ankara"]
[Date "2022.07.04"]
[Round "5.18"]
[White "Cevizci, Yusuf Baran"]
[Black "Ozkan, Taha"]
[Result "1/2-1/2"]
[ECO "C02"]
[WhiteElo "2144"]
[BlackElo "2357"]
[Annotator "TA"]
[PlyCount "80"]
[EventDate "2022.07.02"]
[EventType "swiss"]
[EventCountry "TUR"]
[SourceTitle "playchess.com"]
[Source "ChessBase"]
[SourceQuality "1"]
[TimeControl "5400+30"]

{[%evp 16,80,35,10,15,-77,-83,-83,-79,-70,0,9,8,-10,-6,-14,-16,-17,0,-37,-46,-50,-43,-43,-53,-99,-41,-95,-100,-142,-81,-105,-108,-318,-318,-376,-317,-589,-483,-1012,-709,-894,-577,-582,-556,-1040,-764,-1302,-1293,-1534,-1498,-29988,-29989,-29989,-29990,-29992,-267,-243,0,0,0,0,0,0,0,0,0]} 1. e4 {[%emt 0:01:00]} e6 {[%emt 0:03:00]} 2. d4 {[%emt 0:00:30]} d5 {[%emt 0:00:30]} 3. e5 {[%emt 0:00:30]} c5 {[%emt 0:00:30]} 4. c3 {[%emt 0:00:30]} Qb6 {[%emt 0:00:30]} 5. Nf3 {[%emt 0:00:30]} Nc6 {[%emt 0:00:30]} 6. Bd3 {[%emt 0:00:00]} Bd7 {[%emt 0:00:00]} 7. dxc5 {[%emt 0:00:00]} Bxc5 {[%emt 0:00:00]} 8. O-O {[%emt 0:00:00]} a5 {[%emt 0:00:00]} 9. Nbd2 {[%emt 0:04:00]} f6 {[%emt 0:03:00][%cal Bf7f6,Bf6e5,Be5e4][%mdl 32] [#] C02: French: Advance Variation.} 10. Rb1 $146 {[%emt 0:07:30]} (10. Qe1 $11) ({Predecessor:} 10. Qe2 fxe5 11. Nxe5 Nxe5 12. Qxe5 Nf6 13. Nf3 O-O 14. Qe2 Bd6 15. Ne5 Rae8 16. Be3 Qc7 17. Bd4 {1-0 (57) Hector,J (2499)-Merriman,J (2253) London 2015}) 10... fxe5 $17 {[%emt 0:07:30]} (10... Nxe5 11. Nxe5 fxe5 12. Qh5+ Kf8 13. Qxe5 $14) 11. b4 {[%emt 0:00:30]} axb4 {[%emt 0:00:30] Black is better.} 12. cxb4 {[%emt 0:00:00]} Be7 {[%emt 0:02:30]} (12... Bxb4 13. a3 $14) (12... Bd6 $1 $15 13. Bb2 Nf6) 13. b5 $11 {[%emt 0:00:00]} Nb4 {[%emt 0:01:30]} 14. Be2 {[%emt 0:03:30]} e4 {[%emt 0:03:30]} 15. Ne5 {[%emt 0:00:30][%cal Od2e4]} Nf6 $36 {[%emt 0:02:30][%mdl 2048] Black has good play.} ({But not} 15... Rxa2 16. Bh5+ (16. Nxe4 Rxe2 17. Qxe2 dxe4 $16) 16... g6 17. Nxe4 $16) 16. a3 {[%emt 0:01:30]} Nd3 {[%emt 0:00:30]} 17. Nxd3 {[%emt 0:00:30]} exd3 {[%emt 0:00:30]} 18. Bxd3 {[%emt 0:00:00]} O-O {[%emt 0:00:30]} ({Don't play} 18... Bxa3 19. Ra1 Qd4 20. Nb3 $16) 19. Nf3 {[%emt 0:08:00]} Bxa3 {[%emt 0:03:30]} 20. Bg5 {[%emt 0:01:30]} (20. Qe2 $15) 20... h6 {[%emt 0:05:30]} ({Black should try} 20... Bc5 $17 21. Ne5 Bxf2+ $1 {[%mdl 512]} 22. Kh1 (22. Rxf2 $2 Ne4 $19) 22... Be8 23. Bxf6 Rxf6) 21. Bh4 {[%emt 0:02:30]} ({White should play} 21. Bxf6 $15 Rxf6 22. Ne5) 21... Bd6 $17 {[%emt 0:03:30]} 22. Qe2 {[%emt 0:04:30]} Ra4 {[%emt 0:04:30]} (22... Nh5 $142 {...Nf4 is the strong threat.} 23. g3 Ra4) 23. Bc2 {[%emt 0:03:30]} Rc4 {[%emt 0:03:30] White must now prevent ...Ne4.} 24. Rfd1 $2 {[%emt 0:11:30]} (24. Bg3 $17) 24... Ne4 $19 {[%emt 0:07:30]} 25. Rb3 {[%emt 0:05:30]} Qc5 {[%emt 0:10:30]} 26. Ne1 {[%emt 0:15:30]} (26. Bxe4 {was necessary.} Rxe4 27. Re3 Bxb5 28. Qe1 Rxe3 29. fxe3) 26... Nc3 {[%emt 0:17:30]} 27. Qd3 {[%emt 0:01:30]} (27. Rxc3 $142 Rxc3 28. Bg3) 27... Rf5 {[%emt 0:01:17]} 28. Rd2 {[%emt 0:01:30]} Bf4 {[%emt 0:01:21][%cal Of4h2,Bd6f4,Bf4d2,Bd2e1,Be1f2][%mdl 32] aiming for ...Bxh2+!} 29. g4 {[%emt 0:00:30]} Bxd2 {[%emt 0:03:50]} 30. gxf5 {[%emt 0:00:30]} Ne4 {[%emt 0:01:51]} 31. Ra3 {[%emt 0:03:30]} Bxe1 {[%emt 0:02:06]} 32. Ra8+ {[%emt 0:00:30]} Kh7 {[%emt 0:00:30]} 33. f6 {[%emt 0:00:00]} Bxf2+ {[%emt 0:00:24]} 34. Kh1 {[%emt 0:00:00]} Rxc2 {[%emt 0:00:53]} 35. f7 {[%emt 0:00:30]} Bxb5 $2 {[%emt 0:04:01]} (35... Rc1+ {mates} 36. Kg2 Rg1+ 37. Kf3 e5 38. h3 Bxh3 39. Rh8+ Kxh8 40. Bg3 Ng5+ 41. Ke2 Bg4+ 42. Kd2 Rd1#) 36. Qxc2 {[%emt 0:04:30] [#]} Qxc2 $2 {[%emt 0:00:30]} (36... Kg6 $1 $19 37. Qxc5 Bxc5) 37. f8=N+ $11 {[%emt 0:00:00] The position is equal.} Kg8 {[%emt 0:00:00]} 38. Nd7+ $1 {[%emt 0:00:00]} Kh7 {[%emt 0:02:40]} 39. Nf8+ {[%emt 0:00:00]} Kg8 {[%emt 0:00:27] ( -> ...Qd1+)} 40. Nd7+ $1 {[%emt 0:00:00]} Kh7 {[%emt 0:00:22] Weighted Error Value: White=0.95/Black=0.84} 1/2-1/2

[Event "5th Baskent University Open 2022"]
[Site "Ankara"]
[Date "2022.07.04"]
[Round "5.19"]
[White "Kocak, Can"]
[Black "Eke, Salih"]
[Result "1-0"]
[ECO "B33"]
[WhiteElo "2057"]
[BlackElo "2195"]
[Annotator "RC"]
[PlyCount "71"]
[EventDate "2022.07.02"]
[EventType "swiss"]
[EventCountry "TUR"]
[SourceTitle "playchess.com"]
[Source "ChessBase"]
[SourceQuality "1"]
[TimeControl "5400+30"]

1. e4 {[%emt 0:03:00]} c5 {[%emt 0:01:00]} 2. Nf3 {[%emt 0:00:30]} Nc6 {[%emt 0:00:30]} 3. d4 {[%emt 0:00:30]} cxd4 {[%emt 0:00:30]} 4. Nxd4 {[%emt 0:00:30]} Nf6 {[%emt 0:00:30]} 5. Nc3 {[%emt 0:00:00]} e5 {[%emt 0:00:00]} 6. Ndb5 {[%emt 0:00:00]} d6 {[%emt 0:00:00]} 7. Bg5 {[%emt 0:00:30]} a6 {[%emt 0:00:00]} 8. Na3 {[%emt 0:00:00]} b5 {[%emt 0:00:00]} 9. Nd5 {[%emt 0:00:00]} Be7 {[%emt 0:00:30]} 10. Bxf6 {[%emt 0:00:00]} Bxf6 {[%emt 0:00:30]} 11. c3 {[%emt 0:00:00]} Bg5 {[%emt 0:00:00]} 12. Nc2 {[%emt 0:00:00]} Ne7 {[%emt 0:00:00]} 13. Nce3 {[%emt 0:01:00]} Bxe3 {[%emt 0:00:30]} 14. Nxe3 {[%emt 0:00:30]} O-O {[%emt 0:04:30]} 15. a4 {[%emt 0:03:30]} Bb7 {[%emt 0:05:30]} 16. Bd3 {[%emt 0:15:30]} d5 {[%emt 0:04:30]} 17. axb5 {[%emt 0:05:30]} axb5 {[%emt 0:02:30]} 18. Rxa8 {[%emt 0:03:30]} Bxa8 {[%emt 0:00:30]} 19. O-O {[%emt 0:18:30]} d4 {[%emt 0:01:30]} 20. cxd4 {[%emt 0:00:30]} Qxd4 {[%emt 0:03:30]} 21. Bxb5 {[%emt 0:07:30]} Qxe4 {[%emt 0:02:30]} 22. Qd3 {[%emt 0:03:30]} Qf4 {[%emt 0:10:30]} 23. Ra1 {[%emt 0:06:30]} Ng6 {[%emt 0:01:30]} 24. Bc4 {[%emt 0:02:30]} Be4 {[%emt 0:10:30]} 25. Qd7 {[%emt 0:04:30]} Nh4 {[%emt 0:00:30]} 26. Bd5 {[%emt 0:00:30]} Bg6 {[%emt 0:16:30]} 27. g3 {[%emt 0:03:30]} Nf3+ {[%emt 0:00:00]} 28. Kg2 {[%emt 0:01:30]} Qd4 {[%emt 0:00:00]} 29. Rd1 {[%emt 0:03:36]} Nd2 {[%emt 0:00:00]} 30. Rxd2 {[%emt 0:00:05]} Be4+ {[%emt 0:01:00]} 31. Bxe4 {[%emt 0:00:38]} Qxe4+ {[%emt 0:00:30]} 32. Kg1 {[%emt 0:01:05]} Qb1+ {[%emt 0:00:30]} 33. Nf1 {[%emt 0:00:00]} e4 {[%emt 0:00:00]} 34. Qd4 {[%emt 0:01:28]} f5 {[%emt 0:00:00]} 35. Qd5+ {[%emt 0:00:00]} Kh8 {[%emt 0:00:00]} 36. Qxf5 {[%emt 0:00:04]} 1-0

[Event "5th Baskent University Open 2022"]
[Site "Ankara"]
[Date "2022.07.04"]
[Round "5.21"]
[White "Banci, Dogancan"]
[Black "Turkmen, Ataberk"]
[Result "0-1"]
[ECO "B06"]
[WhiteElo "1608"]
[BlackElo "1935"]
[Annotator "NA RC"]
[PlyCount "115"]
[EventDate "2022.07.02"]
[EventType "swiss"]
[EventCountry "TUR"]
[SourceTitle "playchess.com"]
[Source "ChessBase"]
[SourceQuality "1"]
[TimeControl "5400+30"]

1. e4 {[%emt 0:01:00]} g6 {[%emt 0:02:00]} 2. d4 {[%emt 0:00:00]} Bg7 {[%emt 0:00:00]} 3. Nc3 {[%emt 0:01:00]} d6 {[%emt 0:02:00]} 4. Bg5 {[%emt 0:01:30]} c6 {[%emt 0:00:30]} 5. Qd2 {[%emt 0:01:30]} h6 {[%emt 0:07:30]} 6. Be3 {[%emt 0:01:30]} Nf6 {[%emt 0:03:30]} 7. f3 {[%emt 0:03:30]} b5 {[%emt 0:00:30]} 8. a3 {[%emt 0:02:30]} a6 {[%emt 0:04:30]} 9. h4 {[%emt 0:03:30]} Nbd7 {[%emt 0:02:30]} 10. g4 {[%emt 0:07:30]} Nb6 {[%emt 0:02:30]} 11. Bd3 {[%emt 0:07:30]} Qc7 {[%emt 0:10:30]} 12. Nge2 {[%emt 0:08:30]} c5 {[%emt 0:01:30]} 13. dxc5 {[%emt 0:07:30]} dxc5 {[%emt 0:00:30]} 14. Nf4 {[%emt 0:02:30]} Bb7 {[%emt 0:01:30]} 15. Rd1 {[%emt 0:12:30]} Rd8 {[%emt 0:10:30]} 16. Qf2 {[%emt 0:03:30]} Nfd7 {[%emt 0:01:30]} 17. O-O {[%emt 0:05:30]} O-O {[%emt 0:09:30]} 18. Ncd5 {[%emt 0:13:25]} Nxd5 {[%emt 0:00:30]} 19. Nxd5 {[%emt 0:00:00]} Bxd5 {[%emt 0:01:30]} 20. exd5 {[%emt 0:00:00]} Bxb2 {[%emt 0:02:30]} 21. c4 {[%emt 0:03:31]} Bd4 {[%emt 0:06:30]} 22. Bxd4 {[%emt 0:01:49]} cxd4 {[%emt 0:00:30]} 23. cxb5 {[%emt 0:00:30]} axb5 {[%emt 0:00:30]} 24. Bxb5 {[%emt 0:01:47]} Qc5 {[%emt 0:01:30]} 25. Bxd7 {[%emt 0:02:45]} Rxd7 {[%emt 0:00:30]} 26. Qxd4 {[%emt 0:00:30]} Qxa3 {[%emt 0:00:30]} 27. Rd3 {[%emt 0:03:52]} Qd6 {[%emt 0:00:00]} 28. Kg2 {[%emt 0:00:12]} Rb8 {[%emt 0:01:00]} 29. Rfd1 {[%emt 0:01:17]} Rb4 {[%emt 0:00:30]} 30. Qe3 {[%emt 0:00:44]} Kh7 {[%emt 0:02:30]} 31. R1d2 {[%emt 0:01:22]} Rb1 {[%emt 0:00:30]} 32. Qe4 {[%emt 0:02:04]} Qc5 {[%emt 0:01:30]} 33. Rd1 {[%emt 0:01:12]} Rdb7 {[%emt 0:04:30]} 34. Rxb1 {[%emt 0:01:18]} Rxb1 {[%emt 0:00:30]} 35. Qe3 {[%emt 0:00:00]} Rb2+ {[%emt 0:00:30]} 36. Kg3 {[%emt 0:00:47]} Qd6+ {[%emt 0:00:30]} 37. f4 {[%emt 0:00:05]} Rb4 {[%emt 0:01:30]} 38. Qe5 {[%emt 0:00:39]} Qc5 {[%emt 0:00:30]} 39. Re3 {[%emt 0:00:28]} Qc1 {[%emt 0:01:23]} 40. Qxe7 {[%emt 0:00:42]} Qg1+ {[%emt 0:00:08]} 41. Kh3 {[%emt 0:00:25]} Qf1+ {[%emt 0:00:07]} 42. Kg3 {[%emt 0:00:28]} Qxf4+ {[%emt 0:00:22]} 43. Kg2 {[%emt 0:00:05]} Rb2+ {[%emt 0:00:41]} 44. Re2 {[%emt 0:00:30]} Qxg4+ {[%emt 0:00:19]} 45. Kf2 {[%emt 0:00:00]} Rxe2+ {[%emt 0:00:54]} 46. Qxe2 {[%emt 0:00:29]} Qd4+ {[%emt 0:00:30]} 47. Kg3 {[%emt 0:00:30]} Qxd5 {[%emt 0:00:30]} 48. Qe7 {[%emt 0:00:30]} Kg7 {[%emt 0:00:30]} 49. Kf2 {[%emt 0:00:30]} Qd4+ {[%emt 0:00:30]} 50. Kg2 {[%emt 0:00:30]} Qf6 {[%emt 0:00:30]} 51. Qb4 {[%emt 0:00:30]} Qe5 {[%emt 0:00:30]} 52. Kf3 {[%emt 0:00:30]} h5 {[%emt 0:00:30]} 53. Kf2 {[%emt 0:00:30]} Qf5+ {[%emt 0:00:30]} 54. Ke3 {[%emt 0:00:30]} Qg4 {[%emt 0:00:30]} 55. Qc3+ {[%emt 0:00:30]} Kh7 {[%emt 0:00:30]} 56. Qc7 {[%emt 0:01:27]} Qf5 {[%emt 0:01:54]} 57. Qd8 {[%emt 0:00:19]} Kg7 {[%emt 0:00:30]} 58. Ke2 {[%emt 0:00:57]} 0-1